bitfinex/quotes_SOLUSD_20220130
["timestamp","ask_amount","ask_price","bid_price","bid_amount"]
[1643514548520,6.0,94.712,94.697,0.36237264]
[1643514549016,6.0,94.709,94.697,0.36237264]
[1643514549317,0.25,94.708,94.697,0.36237264]
[1643514555857,0.25,94.708,94.668,0.3]
[1643514556057,0.25,94.708,94.659,16.1283]
[1643514556058,6.0,94.704,94.66,0.3]
[1643514556357,0.25,94.703,94.66,0.3]
[1643514556554,24.9835,94.703,94.66,0.3]
[1643514556754,3.25237034,94.702,94.66,0.3]
[1643514556954,6.0,94.693,94.66,0.3]
[1643514557154,6.0,94.692,94.66,0.3]
[1643514557354,6.25,94.692,94.66,0.3]
[1643514557955,15.08,94.692,94.66,0.3]
[1643514558557,23.6117,94.691,94.632,0.3]
[1643514558959,6.0,94.681,94.632,0.3]
[1643514559157,15.89819196,94.68,94.632,0.3]
[1643514559359,16.14819196,94.68,94.632,0.3]
[1643514559558,6.0,94.67,94.632,0.3]
[1643514559956,0.25,94.669,94.632,0.3]
[1643514560156,6.25,94.669,94.632,0.3]
[1643514560961,6.25,94.669,94.567,105.4]
[1643514560962,23.7697,94.668,94.655,0.0082084]
[1643514561360,6.0,94.658,94.655,0.0082084]
[1643514561562,23.2536,94.657,94.655,0.0082084]
[1643514561760,3.25237034,94.656,94.655,0.0082084]
[1643514562266,3.50237034,94.656,94.655,0.0082084]
[1643514565561,3.25237034,94.656,94.655,0.0082084]
[1643514566864,3.50237034,94.656,94.655,0.0082084]
[1643514574474,3.50237034,94.656,94.636,16.2949168]
[1643514574475,26.54317442,94.656,94.636,16.2949168]
[1643514574674,26.54317442,94.656,94.59,15.9055]
[1643514574675,15.865,94.65,94.59,15.9055]
[1643514574871,6.0,94.646,94.563,32.76578374]
[1643514575069,6.0,94.639,94.563,32.76578374]
[1643514575269,24.0584,94.638,94.563,32.76578374]
[1643514575470,6.0,94.635,94.563,32.76578374]
[1643514575674,6.0,94.628,94.563,32.76578374]
[1643514575869,22.866,94.627,94.564,20.58219183]
[1643514576070,0.1,94.626,94.564,20.58219183]
[1643514576468,6.0,94.617,94.564,20.58219183]
[1643514576873,0.25,94.616,94.546,16.2152]
[1643514577077,15.868,94.61,94.53,1.2072704]
[1643514577273,0.35,94.609,94.535,33.39332273]
[1643514577474,6.0,94.6,94.535,33.39332273]
[1643514577672,6.0,94.6,94.551,35.91734017]
[1643514577874,0.25,94.599,94.509,24.4994]
[1643514578371,0.25,94.599,94.51,15.867]
[1643514578572,0.25,94.599,94.509,24.4994]
[1643514578772,0.25,94.599,94.534,35.55363395]
[1643514579174,6.0,94.595,94.534,35.55363395]
[1643514579479,0.25,94.594,94.534,35.55363395]
[1643514579778,0.25,94.594,94.508,0.1]
[1643514579974,38.0,94.593,94.507,0.17559098]
[1643514580173,6.0,94.583,94.507,0.17559098]
[1643514580376,24.9188,94.582,94.507,0.17559098]
[1643514580575,6.0,94.572,94.507,0.17559098]
[1643514580775,0.25,94.571,94.507,0.17559098]
[1643514581173,6.25,94.571,94.507,0.17559098]
[1643514581582,105.4,94.57,94.507,0.17559098]
[1643514581775,15.879,94.56,94.507,0.17559098]
[1643514581973,23.2911,94.559,94.507,0.17559098]
[1643514582177,26.49779142,94.559,94.507,0.17559098]
[1643514582378,6.0,94.549,94.507,0.17559098]
[1643514582580,6.0,94.549,94.467,0.4825103]
[1643514582776,3.20669142,94.548,94.467,0.4825103]
[1643514582975,9.20669142,94.548,94.467,0.4825103]
[1643514583179,15.881,94.54,94.467,0.4825103]
[1643514583473,105.4,94.537,94.467,0.4825103]
[1643514583675,6.0,94.53,94.467,0.4825103]
[1643514583873,105.4,94.526,94.467,0.4825103]
[1643514584075,105.4,94.515,94.467,0.4825103]
[1643514584274,0.25,94.514,94.467,0.4825103]
[1643514584877,13.27,94.514,94.467,0.4825103]
[1643514585074,6.0,94.504,94.467,0.4825103]
[1643514585279,0.25,94.503,94.467,0.4825103]
[1643514586478,6.0,94.494,94.467,0.4825103]
[1643514586678,0.25,94.519,94.467,0.4825103]
[1643514586679,6.0,94.51,94.467,0.4825103]
[1643514586879,0.25,94.509,94.467,0.4825103]
[1643514588079,0.25,94.522,94.467,0.4825103]
[1643514588481,6.0,94.52,94.467,0.4825103]
[1643514588681,6.0,94.519,94.467,0.4825103]
[1643514588881,6.25,94.519,94.467,0.4825103]
[1643514589603,6.0,94.51,94.467,0.4825103]
[1643514589804,0.25,94.509,94.467,0.4825103]
[1643514591905,6.25,94.509,94.467,0.4825103]
[1643514592105,6.0,94.5,94.467,0.4825103]
[1643514592306,0.25,94.499,94.422,0.4]
[1643514592612,6.0,94.495,94.42,6.0]
[1643514592805,0.25,94.494,94.42,6.0]
[1643514593005,6.0,94.489,94.42,6.0]
[1643514593204,6.0,94.489,94.42,5.5]
[1643514593506,0.25,94.488,94.42,5.5]
[1643514594307,0.25,94.497,94.42,5.5]
[1643514594508,0.25,94.497,94.411,0.4]
[1643514594509,9.20669142,94.497,94.411,0.4]
[1643514594707,43.67219142,94.497,94.395,0.4]
[1643514594907,43.67219142,94.497,94.387,45.91510174]
[1643514594908,26.64519142,94.496,94.387,45.91510174]
[1643514595110,6.0,94.486,94.388,0.2]
[1643514595411,6.0,94.486,94.388,1.61112732]
[1643514595607,6.0,94.48,94.388,1.61112732]
[1643514595809,6.0,94.48,94.398,6.0]
[1643514596109,5.9,94.48,94.44,0.1]
[1643514596512,26.57069142,94.479,94.44,0.1]
[1643514596711,40.57069142,94.479,94.44,0.1]
[1643514597111,40.57069142,94.479,94.387,0.2]
[1643514597313,6.0,94.469,94.387,0.2]
[1643514597516,15.894,94.46,94.387,0.2]
[1643514597724,25.424,94.46,94.387,0.2]
[1643514597915,6.0,94.45,94.375,0.2]
[1643514598116,111.4,94.449,94.375,0.2]
[1643514598316,6.25,94.449,94.375,0.2]
[1643514598516,6.0,94.448,94.375,0.2]
[1643514598717,6.0,94.439,94.375,0.2]
[1643514598917,0.25,94.438,94.375,0.2]
[1643514600121,6.0,94.434,94.375,0.2]
[1643514600325,0.25,94.433,94.375,0.2]
[1643514600520,11.54,94.433,94.375,0.2]
[1643514600921,6.0,94.423,94.375,0.2]
[1643514601122,75.6382,94.493,94.385,24.05385419]
[1643514601321,6.0,94.483,94.386,47.1149]
[1643514601522,6.0,94.48,94.387,0.2]
[1643514601722,22.5799,94.479,94.387,0.2]
[1643514601922,15.893,94.46,94.387,0.2]
[1643514602131,6.0,94.45,94.387,0.2]
[1643514602324,14.214031,94.449,94.387,0.2]
[1643514602523,6.0,94.439,94.375,0.2]
[1643514602927,0.25,94.438,94.375,0.2]
[1643514603822,0.25,94.439,94.375,0.2]
[1643514604022,111.4,94.438,94.375,0.2]
[1643514604222,6.0,94.438,94.375,0.2]
[1643514604425,6.0,94.43,94.375,0.2]
[1643514604623,19.11,94.43,94.375,0.2]
[1643514604825,0.25,94.429,94.375,0.2]
[1643514605224,0.25,94.429,94.375,24.57852044]
[1643514605428,0.25,94.429,94.376,0.2]
[1643514605626,0.25,94.429,94.374,39.85511232]
[1643514605825,23.2087,94.448,94.374,39.85511232]
[1643514606026,24.7955,94.469,94.384,6.0]
[1643514606228,15.34,94.48,94.384,6.0]
[1643514606426,23.2087,94.493,94.385,71.76738905]
[1643514606627,23.2087,94.493,94.385,65.76738905]
[1643514606827,2.95669142,94.492,94.386,1.21112732]
[1643514607025,2.95669142,94.492,94.385,64.55626173]
[1643514607226,6.0,94.482,94.385,64.55626173]
[1643514607525,6.0,94.481,94.386,1.21112732]
[1643514607726,6.0,94.481,94.39,15.887]
[1643514607929,6.0,94.481,94.39,25.587]
[1643514608152,6.0,94.481,94.391,1.21112732]
[1643514608329,6.0,94.481,94.391,1.46112732]
[1643514608528,6.0,94.483,94.391,0.25]
[1643514608725,6.0,94.483,94.39,31.227]
[1643514609126,6.0,94.482,94.39,31.227]
[1643514609327,6.25,94.482,94.39,31.227]
[1643514609530,6.0,94.481,94.4,6.0]
[1643514609727,6.0,94.472,94.4,6.0]
[1643514609931,0.25,94.48,94.41,15.885]
[1643514610129,0.25,94.471,94.41,15.885]
[1643514610328,0.25,94.471,94.401,35.12848993]
[1643514610532,0.25,94.471,94.401,29.12848993]
[1643514611028,0.25,94.471,94.402,0.2]
[1643514611229,13.99,94.471,94.402,0.2]
[1643514611427,2.95669142,94.47,94.402,0.2]
[1643514611630,6.0,94.46,94.402,0.2]
[1643514611927,0.25,94.459,94.402,0.2]
[1643514613132,6.0,94.472,94.402,0.2]
[1643514613428,0.25,94.471,94.402,0.2]
[1643514614028,6.0,94.47,94.402,0.2]
[1643514614228,8.95669142,94.47,94.401,29.12848993]
[1643514614434,37.104569,94.469,94.376,1.45565554]
[1643514614631,37.104569,94.469,94.366,1.45565554]
[1643514614632,6.0,94.459,94.366,1.45565554]
[1643514614930,0.1,94.468,94.363,1.45565554]
[1643514614931,0.25,94.458,94.363,1.45565554]
[1643514615131,0.25,94.458,94.373,6.0]
[1643514615331,0.25,94.458,94.38,15.34]
[1643514615540,0.25,94.458,94.39,6.0]
[1643514615735,0.25,94.458,94.4,15.34]
[1643514616130,0.25,94.482,94.4,15.34]
[1643514616531,0.25,94.482,94.401,0.25]
[1643514617134,6.0,94.48,94.401,0.25]
[1643514617332,0.25,94.479,94.401,0.25]
[1643514617532,0.25,94.479,94.401,1.45863886]
[1643514618532,0.25,94.482,94.401,0.25]
[1643514618934,0.25,94.482,94.4,31.226]
[1643514619636,0.25,94.482,94.401,0.1]
[1643514619837,0.25,94.482,94.401,1.55565554]
[1643514620437,0.25,94.482,94.403,1.45565554]
[1643514620638,0.25,94.482,94.402,1.45565554]
[1643514620841,0.25,94.482,94.405,1.45565554]
[1643514621038,0.25,94.482,94.407,105.4]
[1643514621238,0.25,94.482,94.41,15.884]
[1643514621438,0.25,94.482,94.411,0.1]
[1643514621638,0.35,94.492,94.411,0.1]
[1643514621838,6.0,94.483,94.411,1.55565554]
[1643514622038,6.0,94.483,94.411,0.1]
[1643514622239,0.25,94.482,94.411,0.1]
[1643514622438,0.25,94.482,94.415,1.45565554]
[1643514622641,0.25,94.482,94.416,1.45565554]
[1643514622839,0.25,94.482,94.421,1.45565554]
[1643514623039,0.25,94.482,94.422,34.55189145]
[1643514623266,0.25,94.496,94.424,1.45565554]
[1643514623470,0.25,94.496,94.423,1.55565554]
[1643514623668,0.25,94.496,94.423,0.1]
[1643514625469,0.25,94.496,94.424,1.20863886]
[1643514625869,6.0,94.512,94.425,23.1126]
[1643514626073,6.0,94.512,94.426,105.5]
[1643514626272,0.25,94.511,94.438,105.4]
[1643514626571,0.25,94.511,94.439,0.1]
[1643514626773,0.25,94.511,94.439,1.30863886]
[1643514626971,0.25,94.511,94.44,15.88]
[1643514627171,0.25,94.511,94.441,0.1]
[1643514627371,0.25,94.515,94.441,0.1]
[1643514627572,0.25,94.515,94.439,0.1]
[1643514628575,24.4014,94.515,94.439,0.1]
[1643514628773,0.1,94.514,94.438,0.1]
[1643514628972,6.0,94.505,94.438,0.1]
[1643514629375,0.25,94.504,94.438,0.1]
[1643514630474,0.35,94.514,94.438,0.1]
[1643514630875,6.0,94.505,94.438,0.1]
[1643514631074,0.35,94.514,94.438,0.1]
[1643514631275,0.35,94.514,94.439,1.20863886]
[1643514631473,6.0,94.505,94.439,1.20863886]
[1643514631875,0.25,94.504,94.439,1.20863886]
[1643514633279,0.35,94.514,94.439,1.20863886]
[1643514633781,0.35,94.514,94.439,1.30863886]
[1643514637681,0.35,94.514,94.439,0.1]
[1643514637880,6.0,94.505,94.439,0.1]
[1643514638079,23.6262,94.504,94.439,0.1]
[1643514638279,0.1,94.503,94.439,0.1]
[1643514638879,6.0,94.494,94.439,0.1]
[1643514639279,0.25,94.493,94.439,0.1]
[1643514640281,0.35,94.503,94.448,6.0]
[1643514640482,0.35,94.503,94.448,16.45]
[1643514640684,0.25,94.503,94.45,21.34]
[1643514640982,6.0,94.517,94.451,0.1]
[1643514641383,0.25,94.516,94.451,0.1]
[1643514642584,24.0221,94.516,94.451,0.1]
[1643514642785,0.1,94.515,94.451,0.1]
[1643514643685,0.1,94.515,94.453,36.44429159]
[1643514643890,0.1,94.515,94.454,0.1]
[1643514644285,0.1,94.515,94.455,1.21031473]
[1643514644685,0.1,94.515,94.454,0.1]
[1643514645085,0.1,94.515,94.455,1.21031473]
[1643514645286,0.35,94.526,94.455,1.21031473]
[1643514645488,0.35,94.526,94.454,0.1]
[1643514645887,6.0,94.517,94.454,0.1]
[1643514646089,23.9918,94.516,94.454,0.1]
[1643514646288,0.1,94.515,94.454,0.1]
[1643514646488,0.25,94.516,94.454,0.1]
[1643514646692,24.3196,94.516,94.454,0.1]
[1643514646995,0.1,94.515,94.454,0.1]
[1643514647188,0.25,94.516,94.454,0.1]
[1643514647593,0.25,94.516,94.463,6.0]
[1643514647791,0.1,94.526,94.464,0.25]
[1643514647991,0.1,94.526,94.464,1.46031473]
[1643514648392,0.1,94.526,94.465,1.21031473]
[1643514648590,0.1,94.526,94.471,105.4]
[1643514648791,0.1,94.526,94.48,15.871]
[1643514648990,0.1,94.526,94.481,0.1]
[1643514649195,24.79,94.575,94.49,15.34]
[1643514649196,1.46551617,94.561,94.49,15.34]
[1643514649418,1.46551617,94.568,94.491,37.68342351]
[1643514649718,1.46551617,94.582,94.492,24.6658]
[1643514649919,1.46551617,94.583,94.493,0.1]
[1643514650118,6.0,94.573,94.5,15.869]
[1643514650318,6.0,94.573,94.501,0.35]
[1643514650519,0.25,94.572,94.501,0.1]
[1643514650922,0.25,94.572,94.502,1.21031473]
[1643514651119,0.25,94.572,94.501,0.1]
[1643514651120,6.0,94.569,94.501,0.1]
[1643514651319,0.25,94.568,94.501,0.1]
[1643514652620,6.0,94.568,94.502,1.21031473]
[1643514652822,23.2058,94.567,94.501,0.1]
[1643514653021,0.1,94.566,94.501,0.1]
[1643514654427,6.0,94.557,94.501,0.1]
[1643514654926,0.25,94.556,94.501,0.1]
[1643514656827,0.35,94.566,94.501,0.1]
[1643514657327,0.1,94.566,94.501,0.1]
[1643514658028,0.38891242,94.555,94.501,0.1]
[1643514662834,0.25,94.556,94.501,0.1]
[1643514664135,0.73928798,94.566,94.501,0.1]
[1643514671240,6.0,94.557,94.501,0.1]
[1643514671439,14.227007,94.556,94.471,0.1]
[1643514671638,6.0,94.546,94.455,0.1]
[1643514671839,25.0922,94.545,94.465,1.21273302]
[1643514672039,0.1,94.544,94.466,46.16141265]
[1643514672240,0.1,94.544,94.467,23.582]
[1643514672446,0.1,94.544,94.468,0.1]
[1643514672642,0.1,94.544,94.45,15.34]
[1643514672643,6.0,94.535,94.455,0.1]
[1643514672844,37.127117,94.534,94.451,0.1]
[1643514673047,6.0,94.524,94.451,0.1]
[1643514673445,0.25,94.523,94.451,0.1]
[1643514673945,24.8922,94.523,94.451,0.1]
[1643514674144,0.1,94.522,94.451,32.75962598]
[1643514674346,1.46551617,94.539,94.451,32.75962598]
[1643514674347,0.1,94.534,94.46,6.0]
[1643514674545,2.89127546,94.565,94.471,35.62312607]
[1643514674745,132.54081926,94.554,94.472,0.1]
[1643514674949,0.1,94.553,94.481,6.0]
[1643514675147,0.1,94.553,94.482,6.0]
[1643514675346,0.1,94.553,94.482,6.1]
[1643514675546,0.35,94.553,94.481,0.1]
[1643514675946,6.0,94.544,94.481,0.1]
[1643514676152,22.6304,94.543,94.481,0.1]
[1643514676346,0.1,94.542,94.481,0.1]
[1643514676547,6.0,94.533,94.481,0.1]
[1643514676747,105.4,94.531,94.454,0.1]
[1643514677046,0.1,94.53,94.451,0.1]
[1643514677246,0.35,94.53,94.451,0.1]
[1643514677847,6.0,94.521,94.451,0.1]
[1643514678049,105.4,94.519,94.451,0.1]
[1643514678247,0.1,94.518,94.432,0.48718718]
[1643514678447,6.0,94.509,94.432,0.48718718]
[1643514678649,16.17,94.509,94.432,0.48718718]
[1643514678848,130.4247,94.508,94.432,0.48718718]
[1643514679048,0.1,94.507,94.432,0.48718718]
[1643514679449,0.1,94.507,94.432,1.6999202]
[1643514679648,0.1,94.507,94.432,0.48718718]
[1643514680448,6.0,94.498,94.411,0.1]
[1643514680649,6.0,94.496,94.411,0.1]
[1643514680850,105.4,94.494,94.396,1.45565554]
[1643514681053,6.0,94.484,94.396,1.45565554]
[1643514681348,24.6121,94.483,94.394,1.45565554]
[1643514681549,0.1,94.482,94.391,0.1]
[1643514682051,6.0,94.473,94.391,0.1]
[1643514682248,24.2684,94.472,94.391,0.1]
[1643514682449,105.4,94.469,94.391,0.1]
[1643514682652,6.0,94.459,94.391,0.1]
[1643514682849,0.25,94.458,94.4,6.0]
[1643514683048,0.25,94.458,94.402,6.0]
[1643514683448,0.25,94.458,94.403,44.13612689]
[1643514683649,0.25,94.458,94.404,0.1]
[1643514683848,0.25,94.458,94.404,18.7520069]
[1643514684050,0.25,94.471,94.414,6.0]
[1643514684250,13.095732,94.47,94.414,6.0]
[1643514684454,0.1,94.469,94.415,7.21273302]
[1643514684654,0.25,94.469,94.422,105.4]
[1643514684852,1.15027487,94.482,94.43,15.34]
[1643514685055,1.15027487,94.482,94.44,6.0]
[1643514685255,1.15027487,94.482,94.441,33.63752361]
[1643514685552,1.15027487,94.482,94.442,0.1]
[1643514685953,1.15027487,94.482,94.442,1.31273302]
[1643514686156,0.25,94.481,94.441,31.23752361]
[1643514686454,0.25,94.481,94.443,1.21273302]
[1643514686958,0.25,94.481,94.441,31.23752361]
[1643514687454,0.25,94.481,94.442,1.21273302]
[1643514687958,1.14982349,94.48,94.442,1.21273302]
[1643514688355,1.14982349,94.48,94.452,6.0]
[1643514688655,1.14982349,94.48,94.461,35.03282554]
[1643514689054,1.14982349,94.48,94.462,1.21273302]
[1643514689256,1.14982349,94.48,94.461,35.03282554]
[1643514689758,1.14982349,94.48,94.46,15.34]
[1643514690356,0.25,94.479,94.46,15.34]
[1643514690557,0.25,94.479,94.461,36.83998751]
[1643514690780,0.25,94.479,94.46,15.34]
[1643514691581,0.25,94.479,94.44,15.34]
[1643514692882,1.14937209,94.478,94.44,15.34]
[1643514693284,0.25,94.477,94.44,15.34]
[1643514694185,0.25,94.477,94.451,24.66848918]
[1643514694385,0.25,94.477,94.46,15.34]
[1643514695485,0.25,94.477,94.42,15.34]
[1643514695690,11.06,94.477,94.42,15.34]
[1643514695887,11.06,94.477,94.42,14.84]
[1643514696086,11.06,94.477,94.421,36.63439856]
[1643514697388,0.25,94.477,94.422,1.21273302]
[1643514697588,0.25,94.477,94.432,6.0]
[1643514697789,0.25,94.477,94.44,15.34]
[1643514697988,0.25,94.477,94.45,15.34]
[1643514697989,1.14892067,94.476,94.45,15.34]
[1643514698190,1.14892067,94.476,94.451,32.04974028]
[1643514699992,1.14892067,94.476,94.452,1.21003445]
[1643514702895,26.00334639,94.529,94.452,1.21003445]
[1643514703093,0.25,94.528,94.452,1.21003445]
[1643514704297,0.25,94.528,94.453,24.8952]
[1643514707801,1.16042592,94.527,94.453,24.8952]
[1643514708000,1.16042592,94.527,94.454,1.21003445]
[1643514708200,0.25,94.526,94.454,1.21003445]
[1643514709202,0.25,94.526,94.453,24.8952]
[1643514710503,0.25,94.526,94.451,32.04974028]
[1643514711504,6.0,94.517,94.45,15.34]
[1643514711703,105.4,94.516,94.441,1.21003445]
[1643514711903,130.0911,94.516,94.441,1.21003445]
[1643514712303,130.0911,94.516,94.433,24.1253]
[1643514712603,130.0911,94.516,94.442,42.02885555]
[1643514712804,131.24904544,94.516,94.442,42.02885555]
[1643514714205,27.31456161,94.516,94.442,42.02885555]
[1643514714406,25.84904544,94.516,94.45,15.34]
[1643514716932,25.59904544,94.516,94.45,15.34]
[1643514718408,0.25,94.515,94.45,15.34]
[1643514723016,1.15749439,94.514,94.45,15.34]
[1643514723415,0.25,94.513,94.45,15.34]
[1643514727847,1.15704331,94.512,94.45,15.34]
[1643514728244,0.25,94.511,94.444,38.44931903]
[1643514729150,0.25,94.511,94.436,1.21003445]
[1643514729546,0.25,94.511,94.43,15.34]
[1643514729947,0.25,94.511,94.435,1.21003445]
[1643514730548,0.25,94.511,94.431,36.65472063]
[1643514730749,0.25,94.511,94.436,1.21003445]
[1643514731152,105.4,94.509,94.436,1.21003445]
[1643514731450,0.25,94.508,94.436,1.21003445]
[1643514732051,0.25,94.508,94.431,36.65472063]
[1643514733053,1.15591553,94.507,94.431,36.65472063]
[1643514733452,0.25,94.506,94.431,36.65472063]
[1643514733953,1.15591553,94.507,94.432,105.4]
[1643514734255,1.15591553,94.507,94.442,6.0]
[1643514734453,1.15591553,94.507,94.45,15.34]
[1643514734655,1.15591553,94.507,94.451,32.02941821]
[1643514735254,0.25,94.506,94.451,32.02941821]
[1643514737858,1.15546439,94.505,94.451,32.02941821]
[1643514738259,0.25,94.504,94.451,32.02941821]
[1643514740865,0.25,94.504,94.461,6.0]
[1643514741064,0.25,94.504,94.461,17.96]
[1643514741464,0.25,94.504,94.461,11.96]
[1643514742867,1.15501323,94.503,94.461,11.96]
[1643514743066,1.15501323,94.503,94.462,24.4256]
[1643514743265,0.25,94.502,94.462,24.4256]
[1643514747872,1.15456205,94.501,94.462,24.4256]
[1643514748275,0.25,94.5,94.462,24.4256]
[1643514750377,1.15456205,94.501,94.462,24.4256]
[1643514750805,1.15456205,94.501,94.473,36.0764938]
[1643514751006,1.15456205,94.501,94.483,6.0]
[1643514751405,1.15456205,94.501,94.484,6.0]
[1643514751604,1.15456205,94.501,94.491,32.60764504]
[1643514753106,1.46551617,94.548,94.491,32.60764504]
[1643514753308,1.46551617,94.548,94.492,23.4622]
[1643514753309,0.25,94.547,94.492,23.4622]
[1643514754509,0.25,94.548,94.492,23.4622]
[1643514757810,1.16493439,94.547,94.492,23.4622]
[1643514758012,0.25,94.546,94.492,23.4622]
[1643514762923,1.16448363,94.545,94.492,23.4622]
[1643514763121,1.16448363,94.545,94.492,39.5082]
[1643514763421,0.25,94.544,94.492,39.5082]
[1643514767831,1.16403285,94.543,94.492,39.5082]
[1643514768228,0.25,94.542,94.492,39.5082]
[1643514769228,1.16403285,94.543,94.492,39.5082]
[1643514770629,0.25,94.542,94.492,39.5082]
[1643514771130,0.25,94.542,94.492,23.4622]
[1643514772633,0.25,94.542,94.491,32.60764504]
[1643514773137,1.16358205,94.541,94.491,32.60764504]
[1643514773333,1.16358205,94.541,94.501,6.0]
[1643514773533,1.16358205,94.541,94.51,15.34]
[1643514773733,1.16358205,94.541,94.511,36.0764938]
[1643514773934,1.16358205,94.541,94.52,6.0]
[1643514774137,1.16358205,94.541,94.52,15.34]
[1643514774437,1.16358205,94.541,94.521,6.0]
[1643514774637,0.25,94.54,94.52,15.34]
[1643514777036,1.16358205,94.541,94.52,15.34]
[1643514777839,0.58156562,94.572,94.52,15.34]
[1643514778039,0.58156562,94.572,94.521,23.1176]
[1643514778442,6.0,94.563,94.476,1.45565554]
[1643514778643,1.46551617,94.56,94.5,15.34]
[1643514778842,1.46551617,94.557,94.5,15.34]
[1643514779043,1.46551617,94.553,94.5,15.34]
[1643514779244,1.46551617,94.556,94.5,15.34]
[1643514779546,1.71551617,94.56,94.51,6.0]
[1643514779745,1.71551617,94.56,94.511,24.3487]
[1643514779944,0.25,94.56,94.511,30.3487]
[1643514780750,0.25,94.56,94.511,24.3487]
[1643514780945,1.46551617,94.56,94.511,24.3487]
[1643514781144,0.25,94.57,94.511,24.3487]
[1643514781145,1.46551617,94.563,94.511,24.3487]
[1643514781747,1.46551617,94.561,94.511,24.3487]
[1643514782147,0.25,94.56,94.511,24.3487]
[1643514783350,2.04967342,94.562,94.511,24.3487]
[1643514783547,0.58415725,94.562,94.511,24.3487]
[1643514783749,0.58415725,94.562,94.51,15.34]
[1643514783750,1.46551617,94.561,94.51,15.34]
[1643514784048,1.46551617,94.56,94.51,15.34]
[1643514784247,1.46551617,94.559,94.51,15.34]
[1643514784468,1.71551617,94.56,94.51,15.34]
[1643514784670,0.25,94.56,94.501,34.83193047]
[1643514784868,1.71551617,94.56,94.501,34.83193047]
[1643514785573,6.0,94.55,94.49,15.34]
[1643514785769,6.25,94.55,94.49,15.34]
[1643514785973,6.0,94.545,94.49,15.34]
[1643514786169,6.0,94.542,94.49,15.34]
[1643514786570,6.0,94.54,94.49,54.42613629]
[1643514786771,6.25,94.54,94.49,54.42613629]
[1643514786970,6.25,94.54,94.49,15.34]
[1643514787572,6.0,94.538,94.49,15.34]
[1643514787972,6.0,94.538,94.47,15.34]
[1643514788172,6.0,94.538,94.472,34.56418491]
[1643514788575,6.0,94.538,94.47,15.34]
[1643514788773,6.0,94.531,94.47,15.34]
[1643514789174,6.0,94.525,94.47,15.34]
[1643514789673,6.0,94.524,94.471,43.36224413]
[1643514790374,6.0,94.524,94.47,15.34]
[1643514791079,0.25,94.53,94.47,15.34]
[1643514791273,1.46551617,94.534,94.47,15.34]
[1643514791475,1.46551617,94.535,94.471,34.01365411]
[1643514791876,6.0,94.525,94.471,34.01365411]
[1643514792575,6.0,94.524,94.471,34.01365411]
[1643514792775,22.6375,94.523,94.471,34.01365411]
[1643514795178,22.6375,94.523,94.437,1.21003445]
[1643514795179,38.0,94.522,94.437,1.21003445]
[1643514795379,38.0,94.522,94.42,15.879]
[1643514795380,105.4,94.512,94.431,1.45565554]